bitfinex/quotes_SOLUSD_20250406
["timestamp","ask_amount","ask_price","bid_price","bid_amount"]
[1743981105343,297.72,104.82,104.76,0.03]
[1743981105539,70.46482632,104.8,104.76,0.03]
[1743981105759,70.46482632,104.81,104.76,70.49482632]
[1743981106043,70.46482632,104.77,104.76,0.03]
[1743981106279,81.2,104.81,104.76,0.03]
[1743981106450,70.46482632,104.77,104.76,0.03]
[1743981106770,420.50949832,104.82,104.76,0.03]
[1743981106771,377.72512632,104.82,104.76,0.03]
[1743981106966,70.46482632,104.78,104.76,0.03]
[1743981107167,70.46482632,104.77,104.76,0.03]
[1743981107481,80.00952632,104.77,104.76,0.03]
[1743981108197,80.00952632,104.77,104.65,6.629321]
[1743981108198,81.2,104.76,104.65,1.747321]
[1743981108343,70.46482632,104.76,104.68,70.46482632]
[1743981108543,70.46482632,104.72,104.67,70.46482632]
[1743981108747,70.46482632,104.73,104.68,70.46482632]
[1743981108967,27.5001,104.77,104.69,70.46482632]
[1743981109262,70.46482632,104.76,104.71,70.49482632]
[1743981109465,17.9554,104.77,104.71,0.03]
[1743981109667,70.46482632,104.75,104.71,0.03]
[1743981109842,70.46482632,104.76,104.71,0.03]
[1743981110043,70.46482632,104.76,104.71,70.49482632]
[1743981110264,13.0437,104.77,104.73,70.46482632]
[1743981110470,13.0437,104.77,104.73,96.46482632]
[1743981110642,88.36482632,104.78,104.73,96.46482632]
[1743981110843,17.3708,104.81,104.75,70.46482632]
[1743981111043,12.5441,104.85,104.78,70.46482632]
[1743981111343,12.5441,104.85,104.76,70.74914946]
[1743981111344,70.46482632,104.84,104.76,70.74914946]
[1743981111543,70.46482632,104.83,104.78,70.46482632]
[1743981111745,70.46482632,104.83,104.77,96.46482632]
[1743981111942,70.46482632,104.83,104.77,26.0]
[1743981112162,22.0816,104.85,104.78,70.46482632]
[1743981112359,17.8,104.87,104.8,0.14216157]
[1743981112676,17.8,104.87,104.82,70.46482632]
[1743981112842,310.1792,104.89,104.84,70.46482632]
[1743981113048,380.64402632,104.89,104.83,70.46482632]
[1743981113247,70.46482632,104.88,104.83,70.46482632]
[1743981113553,310.1792,104.89,104.83,26.14216157]
[1743981113870,310.1792,104.89,104.84,70.46482632]
[1743981114048,310.1792,104.89,104.83,26.0]
[1743981114373,70.46482632,104.87,104.78,0.42648471]
[1743981114567,70.46482632,104.86,104.81,70.46482632]
[1743981114766,70.46482632,104.86,104.8,26.0]
[1743981114767,319.713,104.89,104.82,70.46482632]
[1743981115071,70.46482632,104.88,104.83,70.46482632]
[1743981115280,310.1792,104.89,104.83,70.46482632]
[1743981115461,70.46482632,104.87,104.82,26.0]
[1743981115669,70.46482632,104.87,104.82,96.46482632]
[1743981115866,310.1792,104.89,104.82,96.46482632]
[1743981116069,310.1792,104.89,104.83,70.46482632]
[1743981116375,70.46482632,104.87,104.82,26.0]
[1743981116563,310.1792,104.89,104.82,26.0]
[1743981116759,70.46482632,104.85,104.8,96.60698789]
[1743981116955,70.46482632,104.86,104.81,70.46482632]
[1743981117373,319.7131,104.89,104.81,70.46482632]
[1743981117572,70.46482632,104.86,104.81,70.46482632]
[1743981117953,319.7131,104.89,104.81,70.46482632]
[1743981118275,70.46482632,104.86,104.81,96.46482632]
[1743981118783,70.46482632,104.87,104.82,26.0]
[1743981118958,70.46482632,104.84,104.79,26.0]
[1743981119278,70.46482632,104.82,104.77,70.46482632]
[1743981119479,9.538,104.85,104.77,70.46482632]
[1743981119680,79.99982632,104.88,104.79,70.46482632]
[1743981119855,79.99982632,104.88,104.8,70.46482632]
[1743981120056,70.46482632,104.85,104.8,70.46482632]
[1743981120465,5.68473566,104.87,104.83,70.46482632]
[1743981120662,5.68473566,104.87,104.84,70.46482632]
[1743981120977,70.46482632,104.88,104.83,70.46482632]
[1743981121176,70.46482632,104.87,104.82,26.0]
[1743981121351,70.46482632,104.88,104.83,70.46482632]
[1743981121550,70.46482632,104.87,104.82,26.0]
[1743981121756,70.46482632,104.86,104.77,17.7]
[1743981121985,9.535,104.88,104.81,70.46482632]
[1743981122180,70.46482632,104.86,104.81,70.46482632]
[1743981122353,310.1792,104.89,104.82,70.46482632]
[1743981122554,70.46482632,104.87,104.82,70.46482632]
[1743981122785,70.46482632,104.88,104.83,70.46482632]
[1743981122986,70.46482632,104.87,104.82,70.46482632]
[1743981123149,70.46482632,104.86,104.82,70.46482632]
[1743981123355,70.46482632,104.86,104.8,26.14216157]
[1743981123555,70.46482632,104.85,104.81,70.46482632]
[1743981123755,70.46482632,104.88,104.8,96.60698789]
[1743981123951,310.1792,104.89,104.81,70.46482632]
[1743981124157,310.1792,104.89,104.8,26.14216157]
[1743981124355,70.46482632,104.85,104.8,26.14216157]
[1743981124557,70.46482632,104.84,104.8,26.0]
[1743981124760,319.7131,104.89,104.81,70.46482632]
[1743981124955,12.2192,104.89,104.85,70.46482632]
[1743981125177,82.68402632,104.89,104.82,0.42648471]
[1743981125380,70.46482632,104.88,104.84,26.0]
[1743981125690,70.46482632,104.86,104.76,4.66647423]
[1743981125868,12.2192,104.89,104.82,70.46482632]
[1743981126074,12.2192,104.89,104.83,70.46482632]
[1743981126075,70.46482632,104.88,104.83,70.46482632]
[1743981126389,70.46482632,104.87,104.82,96.46482632]
[1743981126887,70.46482632,104.88,104.82,96.46482632]
[1743981127187,82.68402632,104.89,104.84,70.46482632]
[1743981127361,12.2192,104.89,104.85,70.46482632]
[1743981127562,12.2192,104.89,104.86,70.46482632]
[1743981127563,0.063,104.89,104.86,70.46482632]
[1743981127882,0.063,104.89,104.87,70.46482632]
[1743981128087,0.063,104.89,104.88,70.46482632]
[1743981128393,0.063,104.89,104.88,44.933972]
[1743981128601,0.063,104.89,104.88,186.00578621]
[1743981128771,0.063,104.89,104.88,26.0]
[1743981128956,0.063,104.89,104.88,96.60698789]
[1743981129162,0.063,104.89,104.88,186.00578621]
[1743981129455,0.063,104.91,104.89,0.42648471]
[1743981129779,0.063,104.95,104.94,0.14216157]
[1743981129978,0.063,104.95,104.94,167.35613735]
[1743981130276,0.063,104.95,104.94,186.00578621]
[1743981131391,0.063,104.95,104.94,172.17662734]
[1743981131612,0.063,104.95,104.94,101.71180102]
[1743981131962,0.063,104.95,104.94,172.17662734]
[1743981132163,0.063,104.95,104.94,190.8262762]
[1743981132363,0.063,104.95,104.94,192.5687685]
[1743981132587,0.063,104.96,104.95,70.89131103]
[1743981132892,0.063,104.96,104.95,72.6336373]
[1743981133106,0.063,105.0,104.99,0.14216157]
[1743981133273,0.063,105.0,104.98,26.0]
[1743981133769,0.063,105.0,104.97,26.0]
[1743981133969,0.063,105.0,104.97,96.46482632]
[1743981134169,0.063,105.0,104.97,26.0]
[1743981134367,0.063,105.0,104.92,0.14216157]
[1743981134368,70.46482632,104.98,104.92,0.14216157]
[1743981134571,0.063,105.0,104.92,0.14216157]
[1743981134772,0.063,105.0,104.95,70.46482632]
[1743981134976,70.52782632,105.0,104.95,70.46482632]
[1743981135179,0.063,105.0,104.96,70.46482632]
[1743981135394,0.063,105.0,104.98,70.46482632]
[1743981135793,0.063,105.0,104.99,70.60698789]
[1743981137183,0.063,105.0,104.99,70.89131103]
[1743981137604,0.063,105.0,104.94,70.46482632]
[1743981137779,70.52782632,105.0,104.93,18.79181043]
[1743981137978,0.063,105.0,104.89,17.08]
[1743981138186,70.46482632,104.97,104.92,70.46482632]
[1743981138483,0.063,105.0,104.94,70.46482632]
[1743981138688,70.52782632,105.0,104.95,70.46482632]
[1743981139089,70.46482632,104.99,104.94,96.46482632]
[1743981139291,70.46482632,104.99,104.94,26.0]
[1743981139473,0.063,105.0,104.93,0.14216157]
[1743981139668,70.46482632,104.99,104.94,70.46482632]
[1743981139875,0.063,105.0,104.95,70.46482632]
[1743981140104,0.063,105.0,104.97,70.46482632]
[1743981140308,0.063,105.0,104.98,70.46482632]
[1743981140599,0.063,105.0,104.97,26.0]
[1743981140801,0.063,105.0,104.98,70.46482632]
[1743981141102,0.063,105.0,104.99,70.46482632]
[1743981141292,0.063,105.0,104.98,0.14216157]
[1743981141902,0.063,105.0,104.99,70.46482632]
[1743981142802,0.063,105.0,104.98,70.46482632]
[1743981142985,0.063,105.0,104.97,26.0]
[1743981143392,0.063,105.0,104.99,70.60698789]
[1743981143705,0.063,105.0,104.99,160.00578621]
[1743981143909,0.063,105.02,105.01,0.14216157]
[1743981144075,0.063,105.07,105.06,0.14216157]
[1743981144277,0.063,105.07,105.06,70.60698789]
[1743981144502,0.063,105.07,105.06,70.89131103]
[1743981144704,0.063,105.07,105.06,141.07181421]
[1743981145085,0.063,105.07,105.06,160.00578621]
[1743981145701,0.063,105.08,105.07,18.79181043]
[1743981145901,0.063,105.08,105.07,89.54095989]
[1743981146104,0.063,105.08,105.07,91.28129626]
[1743981146785,17.8945,105.17,105.1,26.0]
[1743981147106,17.8945,105.17,105.12,70.46482632]
[1743981147292,88.35932632,105.17,105.12,70.46482632]
[1743981147489,17.8945,105.17,105.13,70.60698789]
[1743981147680,12.3245,105.21,105.13,70.60698789]
[1743981147884,12.3245,105.21,105.13,70.89131103]
[1743981148185,82.78932632,105.21,105.13,89.54095989]
[1743981148383,12.3245,105.21,105.13,89.54095989]
[1743981148795,12.3245,105.21,105.13,91.28030301]
[1743981149504,70.46482632,105.2,105.13,91.28030301]
[1743981149708,21.8293,105.21,105.13,72.63065415]
[1743981149905,70.46482632,105.18,105.13,96.46482632]
[1743981150208,9.5059,105.2,105.12,70.46482632]
[1743981150508,82.78932632,105.21,105.13,89.54095989]
[1743981150813,0.03,105.19,105.13,91.28030301]
[1743981151407,70.46482632,105.18,105.13,1.73934312]
[1743981151701,70.46482632,105.18,105.13,70.46482632]
[1743981151910,70.49482632,105.19,105.13,70.46482632]
[1743981152282,70.46482632,105.18,105.12,26.0]
[1743981152481,0.03,105.19,105.12,96.46482632]
[1743981152699,0.03,105.19,105.13,70.46482632]
[1743981152700,70.46482632,105.18,105.13,70.46482632]
[1743981152905,0.03,105.19,105.12,26.0]
[1743981153109,70.46482632,105.17,105.12,26.0]
[1743981153298,70.46482632,105.16,105.1,0.14216157]
[1743981153477,70.46482632,105.16,105.11,70.46482632]
[1743981153904,70.46482632,105.16,105.12,26.0]
[1743981154210,70.46482632,105.15,105.1,70.46482632]
[1743981154394,70.46482632,105.15,105.09,0.42648471]
[1743981154599,70.52782632,105.14,105.06,75.29949679]
[1743981154785,70.46482632,105.13,105.08,70.46482632]
[1743981155109,83.08582632,105.13,105.08,70.46482632]
[1743981155336,12.621,105.13,105.09,70.46482632]
[1743981155811,0.063,105.14,105.12,70.46482632]
[1743981155999,0.063,105.14,105.11,70.46482632]
[1743981156393,0.063,105.14,105.12,70.46482632]
[1743981156822,0.063,105.14,105.13,70.89131103]
[1743981157318,0.063,105.14,105.13,26.0]
[1743981157484,70.52782632,105.14,105.09,26.0]
[1743981157685,0.063,105.14,105.1,70.46482632]
[1743981157996,0.063,105.14,105.1,26.0]
[1743981158213,0.063,105.14,105.12,70.46482632]
[1743981158411,0.063,105.14,105.13,70.46482632]
[1743981158715,0.063,105.14,105.13,26.0]
[1743981159086,0.063,105.14,105.1,0.42648471]
[1743981159087,0.063,105.14,105.1,70.46482632]
[1743981159288,0.063,105.14,105.1,96.46482632]
[1743981159918,0.063,105.14,105.11,70.46482632]
[1743981160293,0.063,105.14,105.12,70.46482632]
[1743981160494,0.063,105.14,105.13,70.46482632]
[1743981160803,0.063,105.14,105.12,26.0]
[1743981160992,0.063,105.14,105.1,70.74914946]
[1743981161317,0.063,105.14,105.1,70.46482632]
[1743981161506,70.52782632,105.14,105.1,70.46482632]
[1743981161716,0.063,105.14,105.11,70.46482632]
[1743981162213,0.063,105.14,105.11,26.0]
[1743981162389,70.46482632,105.13,105.09,70.46482632]
[1743981162589,4.9376,105.14,105.09,70.46482632]
[1743981162891,4.9376,105.14,105.1,70.46482632]
[1743981163401,4.9376,105.14,105.09,0.28432314]
[1743981163588,4.9376,105.14,105.1,70.46482632]
[1743981163998,4.9376,105.14,105.11,70.46482632]
[1743981163999,0.063,105.14,105.11,70.46482632]
[1743981164215,0.063,105.14,105.12,70.46482632]
[1743981164417,0.063,105.14,105.13,70.46482632]
[1743981164804,0.063,105.14,105.11,26.0]
[1743981165025,0.063,105.14,105.12,70.46482632]
[1743981165219,0.063,105.14,105.13,70.46482632]
[1743981165797,0.063,105.14,105.13,26.0]
[1743981166005,0.063,105.14,105.11,0.28432314]
[1743981166227,0.063,105.14,105.08,18.933972]
[1743981166522,0.063,105.14,105.1,70.46482632]
[1743981166897,70.52782632,105.14,105.09,96.46482632]
[1743981167096,70.46482632,105.13,105.1,26.0]
[1743981167422,0.063,105.14,105.1,70.46482632]
[1743981167633,70.52782632,105.14,105.09,70.46482632]
[1743981167920,0.063,105.14,105.1,96.46482632]
[1743981168439,0.063,105.14,105.1,1.7398396]
[1743981168594,70.52782632,105.14,105.1,26.0]
[1743981168790,0.063,105.14,105.1,96.46482632]
[1743981168995,0.063,105.14,105.1,26.0]
[1743981169224,0.063,105.14,105.12,70.46482632]
[1743981169433,0.063,105.14,105.11,70.89131103]
[1743981170409,0.063,105.14,105.11,26.0]
[1743981170809,0.063,105.14,105.11,96.46482632]
[1743981171405,0.063,105.14,105.11,26.0]
[1743981171702,82.92022632,105.17,105.12,70.46482632]
[1743981172029,82.92022632,105.17,105.13,26.0]
[1743981172231,12.4554,105.17,105.13,96.46482632]
[1743981172524,12.4554,105.17,105.14,26.0]
[1743981172894,12.4554,105.17,105.13,70.46482632]
[1743981173128,12.4554,105.17,105.12,26.0]
[1743981173315,70.46482632,105.16,105.11,70.46482632]
[1743981174004,82.92022632,105.17,105.12,96.46482632]
[1743981174224,12.4554,105.17,105.12,26.0]
[1743981174531,12.4554,105.17,105.13,70.46482632]
[1743981174916,12.4554,105.17,105.14,70.46482632]
[1743981175537,12.4554,105.17,105.13,0.14216157]
[1743981175730,12.4554,105.17,105.12,26.0]
[1743981175925,70.46482632,105.16,105.12,26.0]
[1743981176130,70.46482632,105.15,105.13,26.0]
[1743981176330,70.46482632,105.15,105.1,96.46482632]
[1743981176537,70.46482632,105.15,105.13,26.0]
[1743981176841,70.46482632,105.16,105.13,26.0]
[1743981177029,70.46482632,105.16,105.11,70.46482632]
[1743981177345,12.4554,105.17,105.14,0.14216157]
[1743981177865,12.4554,105.17,105.13,70.46482632]
[1743981178344,70.46482632,105.15,105.12,0.14216157]
[1743981178517,70.46482632,105.16,105.13,26.0]
[1743981178724,82.92022632,105.17,105.13,96.46482632]
[1743981179118,82.92022632,105.17,105.12,26.14216157]
[1743981179318,12.4554,105.17,105.12,73.21823605]
[1743981179554,59.53147448,105.17,105.12,73.21823605]
[1743981179751,12.4554,105.17,105.12,73.21823605]
[1743981179950,12.4554,105.17,105.13,47.07607448]
[1743981180421,12.4554,105.17,105.16,26.0]
[1743981180622,59.53147448,105.17,105.16,26.0]
[1743981180820,59.53147448,105.17,105.12,0.14216157]
[1743981181027,59.53147448,105.17,105.12,47.21823605]
[1743981181759,47.07607448,105.16,105.12,0.14216157]
[1743981181956,12.4554,105.17,105.09,0.14216157]
[1743981181957,47.07607448,105.14,105.09,0.14216157]
[1743981182253,18.64964886,105.16,105.08,0.14216157]
[1743981182443,47.07607448,105.12,105.1,26.0]
[1743981182960,47.07607448,105.13,105.11,26.0]
[1743981183259,47.07607448,105.13,105.08,47.21823605]
[1743981183463,47.07607448,105.12,105.08,0.14216157]
[1743981183756,47.07607448,105.09,105.06,0.063]
[1743981183957,12.2477,105.1,105.06,0.063]
[1743981184130,12.2477,105.1,105.06,47.13907448]
[1743981184338,12.2477,105.1,105.09,26.0]
[1743981184739,12.2477,105.1,105.09,0.14216157]
[1743981184941,59.24817448,105.14,105.11,26.0]
[1743981185145,47.07607448,105.13,105.11,26.0]
[1743981185462,12.1721,105.14,105.1,26.0]
[1743981185463,59.24817448,105.14,105.1,26.0]
[1743981185756,12.1721,105.14,105.11,0.14216157]
[1743981187243,12.1721,105.14,105.1,26.0]
[1743981187439,59.24817448,105.14,105.1,26.0]
[1743981187641,59.24817448,105.14,105.12,26.0]
[1743981187945,59.24817448,105.14,105.06,47.13907448]
[1743981187946,47.07607448,105.13,105.06,0.063]
[1743981188140,47.07607448,105.11,105.06,47.13907448]
[1743981188465,47.07607448,105.09,105.06,0.063]
[1743981188669,47.07607448,105.12,105.07,26.0]
[1743981188964,9.5138,105.11,105.07,26.0]
[1743981189138,47.07607448,105.09,105.06,0.063]
[1743981189339,47.07607448,105.09,105.07,26.0]
[1743981190069,12.1721,105.14,105.06,0.063]
[1743981190246,12.1721,105.14,105.08,47.21823605]
[1743981190247,47.07607448,105.13,105.08,47.21823605]
[1743981190453,47.07607448,105.13,105.09,26.0]
[1743981190657,47.07607448,105.12,105.07,47.07607448]
[1743981190944,47.07607448,105.09,105.07,26.0]
[1743981191330,47.07607448,105.08,105.06,0.063]
[1743981191536,47.07607448,105.09,105.06,0.063]
[1743981191749,9.5139,105.11,105.07,26.0]
[1743981191962,47.07607448,105.09,105.07,26.0]
[1743981192141,47.07607448,105.1,105.07,26.0]
[1743981192346,28.16204886,105.13,105.07,26.0]
[1743981192542,12.1721,105.14,105.08,47.07607448]
[1743981192732,12.1721,105.14,105.09,47.07607448]
[1743981192733,59.24817448,105.14,105.09,47.07607448]
[1743981192937,47.07607448,105.13,105.08,47.07607448]
[1743981193233,47.07607448,105.11,105.09,26.0]
[1743981193471,47.07607448,105.1,105.06,0.063]
[1743981193760,21.6836,105.14,105.06,47.28123605]
[1743981193950,47.07607448,105.1,105.06,0.063]
[1743981194150,47.07607448,105.1,105.08,26.0]
[1743981194564,47.07607448,105.11,105.08,26.0]
[1743981194861,12.1721,105.14,105.08,47.07607448]
[1743981195246,47.07607448,105.13,105.08,47.07607448]
[1743981195442,59.24817448,105.14,105.09,47.21823605]
[1743981195668,12.1721,105.14,105.08,26.0]
[1743981195850,12.1721,105.14,105.08,47.07607448]
[1743981196050,47.07607448,105.13,105.08,47.07607448]
[1743981196871,12.1721,105.14,105.08,47.07607448]
[1743981197159,59.24817448,105.14,105.09,47.07607448]
[1743981197362,47.07607448,105.13,105.08,47.07607448]
[1743981197950,12.1721,105.14,105.08,47.07607448]
[1743981197951,59.24817448,105.14,105.09,47.07607448]
[1743981198162,12.1721,105.14,105.1,73.07607448]
[1743981198752,12.1721,105.14,105.11,47.21823605]
[1743981199273,12.1721,105.14,105.11,0.14216157]
[1743981199566,12.1721,105.14,105.12,47.07607448]
[1743981199879,12.8565,105.18,105.14,0.14216157]
[1743981200176,12.8565,105.18,105.15,47.07607448]
[1743981200387,59.93257448,105.18,105.16,26.0]
[1743981200563,12.8565,105.18,105.16,26.0]
[1743981200757,12.8565,105.18,105.17,26.0]
[1743981201449,0.03,105.19,105.17,26.0]
[1743981201845,0.03,105.19,105.18,47.21823605]
[1743981202152,0.03,105.19,105.18,47.50255919]
[1743981202359,0.03,105.19,105.18,66.15220805]
[1743981202549,0.03,105.19,105.18,113.22828253]
[1743981202753,11.5038,105.22,105.21,26.14216157]
[1743981202941,0.03,105.25,105.22,0.14216157]
[1743981203161,0.03,105.25,105.23,47.07607448]
[1743981203672,0.03,105.25,105.22,0.14216157]
[1743981203673,0.03,105.25,105.24,47.07607448]
[1743981204366,0.03,105.25,105.24,47.21823605]
[1743981204954,0.03,105.25,105.24,47.50255919]
[1743981205471,0.03,105.25,105.22,26.0]
[1743981205653,0.03,105.25,105.23,47.07607448]
[1743981205967,0.03,105.25,105.21,47.21823605]
[1743981206168,47.07607448,105.24,105.19,47.07607448]
[1743981206773,47.07607448,105.22,105.14,0.14216157]
[1743981206978,59.39217448,105.2,105.16,47.07607448]
[1743981207152,12.3161,105.2,105.16,47.07607448]
[1743981207353,12.3161,105.2,105.17,70.55651757]
[1743981208074,12.3161,105.2,105.18,0.14216157]
[1743981208272,12.3161,105.2,105.18,70.55651757]
[1743981208477,13.1165,105.23,105.22,26.0]
[1743981209251,0.03,105.25,105.22,70.55651757]
[1743981209691,0.03,105.25,105.23,70.55651757]
[1743981209847,0.03,105.25,105.24,0.14216157]
[1743981210046,0.03,105.25,105.16,5.382]
[1743981210288,0.03,105.25,105.23,70.55651757]
[1743981210457,0.03,105.25,105.24,26.0]
[1743981210975,70.58651757,105.25,105.2,0.14216157]
[1743981211179,70.55651757,105.23,105.16,0.14216157]
[1743981211566,70.55651757,105.23,105.21,26.0]
[1743981212097,70.55651757,105.22,105.14,18.79181043]
[1743981212305,70.55651757,105.18,105.09,76.97363545]
[1743981212488,17.6741,105.21,105.09,76.97363545]
[1743981212489,17.6741,105.21,105.13,70.55651757]
[1743981212685,17.6741,105.21,105.14,70.69867914]
[1743981212879,70.55651757,105.18,105.13,70.55651757]
[1743981213289,70.55651757,105.17,105.12,70.69867914]
[1743981213466,9.5066,105.19,105.12,70.55651757]
[1743981213672,70.55651757,105.15,105.14,26.0]
[1743981213990,70.55651757,105.17,105.14,26.0]
[1743981214168,70.55651757,105.18,105.13,70.55651757]
[1743981214496,70.55651757,105.19,105.14,70.55651757]
[1743981214691,70.55651757,105.18,105.13,0.14216157]
[1743981214894,70.55651757,105.16,105.14,26.0]
[1743981215189,70.55651757,105.15,105.1,70.69867914]
[1743981215365,70.55651757,105.15,105.13,26.0]
[1743981215562,70.55651757,105.14,105.13,26.0]
[1743981215781,70.55651757,105.14,105.1,70.69867914]
[1743981215978,70.55651757,105.15,105.1,70.55651757]
[1743981216185,83.66891757,105.13,105.06,0.20516157]
[1743981216375,70.55651757,105.11,105.1,26.0]
[1743981216780,70.55651757,105.11,105.06,0.063]
[1743981216982,17.929,105.13,105.06,0.063]
[1743981217300,70.55651757,105.09,105.06,0.063]
[1743981217671,70.55651757,105.08,105.06,0.063]
[1743981218180,70.55651757,105.09,105.06,0.063]
[1743981218491,70.55651757,105.1,105.06,0.063]
[1743981218684,17.929,105.13,105.07,70.55651757]
[1743981218891,70.55651757,105.12,105.07,70.55651757]
[1743981219087,70.55651757,105.12,105.08,0.063]
[1743981219291,88.48551757,105.13,105.08,70.61951757]
[1743981219766,70.55651757,105.12,105.08,0.063]
[1743981220474,17.929,105.13,105.09,70.55651757]
[1743981220806,88.48551757,105.13,105.08,70.61951757]
[1743981221098,70.55651757,105.12,105.08,0.063]
[1743981222169,88.48551757,105.13,105.08,96.61951757]
[1743981222394,70.55651757,105.12,105.08,26.063]
[1743981222597,17.929,105.13,105.08,26.063]
[1743981222795,70.55651757,105.12,105.08,26.063]
[1743981223395,70.55651757,105.11,105.08,0.063]
[1743981223982,17.929,105.13,105.08,0.063]
[1743981224175,70.55651757,105.11,105.08,0.063]
[1743981224774,70.55651757,105.12,105.08,0.063]
[1743981224995,88.48551757,105.13,105.08,70.61951757]
[1743981225292,17.929,105.13,105.08,70.61951757]
[1743981225505,88.48551757,105.13,105.08,70.61951757]
[1743981226005,70.55651757,105.11,105.08,26.063]
[1743981226186,70.55651757,105.12,105.08,26.063]
[1743981226501,70.55651757,105.11,105.08,0.063]
[1743981226871,70.55651757,105.12,105.1,26.0]
[1743981227102,70.55651757,105.11,105.08,0.063]
[1743981227311,70.55651757,105.09,105.08,0.063]
[1743981227494,70.55651757,105.1,105.08,0.063]
[1743981228174,70.55651757,105.11,105.08,0.063]
[1743981228517,17.929,105.13,105.08,0.063]
[1743981228869,17.929,105.13,105.08,70.61951757]
[1743981229074,88.48551757,105.13,105.08,70.61951757]
[1743981229294,17.929,105.13,105.09,73.10472932]
[1743981229606,13.1124,105.13,105.09,73.10472932]
[1743981229900,13.1124,105.13,105.09,26.0]
[1743981230437,13.1124,105.13,105.09,73.10472932]
[1743981230612,13.1124,105.13,105.1,47.10472932]
[1743981232018,13.1124,105.13,105.09,26.0]
[1743981232181,47.10472932,105.12,105.1,26.0]
[1743981232512,47.10472932,105.11,105.1,26.0]
[1743981232876,47.10472932,105.12,105.08,0.063]
[1743981233581,13.1124,105.13,105.09,47.10472932]
[1743981233995,60.21712932,105.13,105.09,26.0]
[1743981234196,47.10472932,105.12,105.08,0.063]
[1743981234393,47.10472932,105.11,105.08,0.063]
[1743981234597,47.10472932,105.11,105.09,26.0]
[1743981234803,47.10472932,105.12,105.09,26.0]
[1743981235313,60.21712932,105.13,105.08,47.16772932]
[1743981235479,13.1124,105.13,105.09,47.10472932]
[1743981235807,47.10472932,105.12,105.08,0.063]
[1743981236122,47.10472932,105.11,105.09,26.0]
[1743981236809,47.10472932,105.12,105.08,0.063]
[1743981238010,60.21712932,105.13,105.08,47.16772932]
[1743981238175,47.10472932,105.12,105.08,0.063]
[1743981238380,47.10472932,105.11,105.09,26.0]
[1743981238693,13.1124,105.13,105.09,26.0]
[1743981239087,60.21712932,105.13,105.08,47.16772932]
[1743981239694,47.10472932,105.11,105.08,0.063]
[1743981240018,47.10472932,105.11,105.09,26.0]
[1743981240510,22.6244,105.13,105.08,0.063]
[1743981240815,47.10472932,105.12,105.08,0.063]
[1743981240979,47.10472932,105.1,105.08,0.063]
[1743981241181,47.10472932,105.11,105.08,0.063]
[1743981241584,22.6244,105.13,105.08,47.16772932]
[1743981241585,47.10472932,105.12,105.08,47.16772932]
[1743981241899,60.21712932,105.13,105.08,47.16772932]
[1743981242105,60.21712932,105.13,105.08,0.063]
[1743981242309,60.21712932,105.13,105.08,47.16772932]
[1743981242520,13.1124,105.13,105.09,47.10472932]
[1743981242721,47.10472932,105.14,105.09,26.0]
[1743981243026,47.10472932,105.13,105.09,26.0]
[1743981243192,47.10472932,105.12,105.1,26.0]
[1743981243397,47.10472932,105.11,105.08,0.063]
[1743981243600,47.10472932,105.13,105.08,47.16772932]
[1743981243796,47.10472932,105.11,105.08,0.063]
[1743981244001,47.10472932,105.12,105.08,0.063]
[1743981244916,18.64964886,105.15,105.09,47.10472932]
[1743981245091,47.10472932,105.13,105.08,47.16772932]
[1743981245704,47.10472932,105.15,105.1,47.10472932]
[1743981246099,21.6557,105.16,105.1,47.10472932]
[1743981246294,47.10472932,105.14,105.1,47.10472932]
[1743981246501,59.25102932,105.16,105.1,47.10472932]
[1743981246814,12.1463,105.16,105.11,47.10472932]
[1743981247190,47.10472932,105.18,105.12,47.10472932]
[1743981247389,323.3973,105.19,105.13,47.10472932]
[1743981247636,47.10472932,105.18,105.13,47.10472932]
[1743981247789,332.9039,105.19,105.12,26.0]
[1743981247989,47.10472932,105.18,105.13,47.10472932]
[1743981248307,323.3973,105.19,105.13,47.10472932]